[Event "FIDE Women World Blitz 2021"]
[Site "Warsaw"]
[Date "2021.12.29"]
[Round "4.33"]
[White "Doluhanova, Evgeniya"]
[Black "Berend, Elvira"]
[Result "1-0"]
[ECO "A30"]
[WhiteElo "2237"]
[BlackElo "2328"]
[Annotator "NA"]
[PlyCount "121"]
[EventDate "2021.12.29"]
[EventType "swiss"]
[EventCountry "POL"]
[Tiebreak "Cut1 Buchholz"]
[SourceTitle "playchess.com"]
[Source "ChessBase"]
[SourceQuality "1"]
[TimeControl "180+2"]

1. Nf3 {[%emt 0:00:02]} Nf6 {[%emt 0:00:01]} 2. b3 {[%emt 0:00:02]} g6 {
[%emt 0:00:07]} 3. Bb2 {[%emt 0:00:01]} Bg7 {[%emt 0:00:01]} 4. e3 {[%emt 0:00:
04]} O-O {[%emt 0:00:04]} 5. Be2 {[%emt 0:00:03]} c5 {[%emt 0:00:02]} 6. O-O {
[%emt 0:00:03]} d5 {[%emt 0:00:01]} 7. c4 {[%emt 0:00:05]} d4 {[%emt 0:00:12]}
8. exd4 {[%emt 0:00:08]} Nh5 {[%emt 0:00:01]} 9. Ne5 {[%emt 0:00:15]} Nf4 {
[%emt 0:00:01]} 10. dxc5 {[%emt 0:00:14]} Nxe2+ {[%emt 0:00:17]} 11. Qxe2 {
[%emt 0:00:03]} f6 {[%emt 0:00:08]} 12. Nf3 {[%emt 0:00:10]} e5 {[%emt 0:00:01]
} 13. d4 {[%emt 0:00:09]} exd4 {[%emt 0:00:07]} 14. Nxd4 {[%emt 0:00:22]} Re8 {
[%emt 0:00:00]} 15. Qc2 {[%emt 0:00:44]} Qa5 {[%emt 0:00:16]} 16. Nb5 {[%emt 0:
00:08]} Bf5 {[%emt 0:00:03]} 17. Qd2 {[%emt 0:00:06]} Qxd2 {[%emt 0:00:08]} 18.
Nxd2 {[%emt 0:00:02]} Na6 {[%emt 0:00:00]} 19. Nd6 {[%emt 0:00:04]} Re2 {
[%emt 0:00:02]} 20. Bc3 {[%emt 0:00:14]} Nxc5 {[%emt 0:00:04]} 21. Nxf5 {
[%emt 0:00:04]} gxf5 {[%emt 0:00:01]} 22. Rfe1 {[%emt 0:00:03]} Rxe1+ {[%emt 0:
00:06]} 23. Rxe1 {[%emt 0:00:01]} Rd8 24. Kf1 {[%emt 0:00:11]} Kf7 {[%emt 0:00:
12]} 25. Nf3 {[%emt 0:00:11]} Ne4 {[%emt 0:00:02]} 26. Bb4 {[%emt 0:00:04]} Bh6
{[%emt 0:00:02]} 27. g3 {[%emt 0:00:04]} b6 {[%emt 0:00:03]} 28. Nh4 {[%emt 0:
00:02]} Bd2 {[%emt 0:00:15]} 29. Bxd2 {[%emt 0:00:02]} Rxd2 {[%emt 0:00:06]}
30. Re2 {[%emt 0:00:02]} Rd1+ {[%emt 0:00:02]} 31. Kg2 {[%emt 0:00:01]} Nd6 {
[%emt 0:00:05]} 32. f4 {[%emt 0:00:06]} a5 {[%emt 0:00:03]} 33. Kf3 {[%emt 0:
00:02]} a4 {[%emt 0:00:04]} 34. bxa4 {[%emt 0:00:03]} Rc1 {[%emt 0:00:04]} 35.
Rb2 {[%emt 0:00:03]} Nxc4 {[%emt 0:00:02]} 36. Rb4 {[%emt 0:00:01]} Rc3+ {
[%emt 0:00:01]} 37. Kf2 {[%emt 0:00:03]} Rc2+ {[%emt 0:00:02]} 38. Kf3 {
[%emt 0:00:03]} Rc3+ {[%emt 0:00:14]} 39. Kg2 {[%emt 0:00:01]} Rc2+ {[%emt 0:
00:04]} 40. Kh3 {[%emt 0:00:02]} Ne3 {[%emt 0:00:02]} 41. Rxb6 {[%emt 0:00:06]}
Ng4 {[%emt 0:00:04]} 42. Nxf5 {[%emt 0:00:04]} Nf2+ {[%emt 0:00:01]} 43. Kh4 {
[%emt 0:00:01]} Rxa2 {[%emt 0:00:00]} 44. h3 {[%emt 0:00:02]} Rxa4 {[%emt 0:00:
04]} 45. Nh6+ {[%emt 0:00:01]} Kg6 {[%emt 0:00:03]} 46. Ng4 {[%emt 0:00:03]}
Ne4 {[%emt 0:00:04]} 47. Re6 {[%emt 0:00:02]} Kf7 {[%emt 0:00:03]} 48. Rb6 {
[%emt 0:00:02]} Rc4 {[%emt 0:00:05]} 49. Nh6+ {[%emt 0:00:02]} Kg6 {[%emt 0:00:
02]} 50. Ng8 {[%emt 0:00:02]} Kf7 {[%emt 0:00:03]} 51. Nh6+ {[%emt 0:00:02]}
Kg6 {[%emt 0:00:00]} 52. Ng4 {[%emt 0:00:02]} Ra4 {[%emt 0:00:03]} 53. Ne3 {
[%emt 0:00:01]} Ra3 {[%emt 0:00:04]} 54. f5+ {[%emt 0:00:03]} Kg7 {[%emt 0:00:
02]} 55. Rb7+ {[%emt 0:00:01]} Kg8 {[%emt 0:00:02]} 56. Ng4 {[%emt 0:00:02]}
Ra6 {[%emt 0:00:04]} 57. Nh6+ {[%emt 0:00:02]} Kh8 {[%emt 0:00:01]} 58. g4 {
[%emt 0:00:02]} Ng5 {[%emt 0:00:07]} 59. Kh5 {[%emt 0:00:02]} Nxh3 {[%emt 0:00:
04]} 60. Rb8+ {[%emt 0:00:01]} Kg7 {[%emt 0:00:01]} 61. Rg8# {[%emt 0:00:01]}
1-0

[Event "FIDE Women World Blitz 2021"]
[Site "Warsaw"]
[Date "2021.12.29"]
[Round "4.34"]
[White "Muetsch, Annmarie"]
[Black "Yakimova, Mariya"]
[Result "1-0"]
[ECO "B23"]
[WhiteElo "2279"]
[BlackElo "2219"]
[Annotator "NA"]
[PlyCount "109"]
[EventDate "2021.12.29"]
[EventType "swiss"]
[EventCountry "POL"]
[Tiebreak "Cut1 Buchholz"]
[SourceTitle "playchess.com"]
[Source "ChessBase"]
[SourceQuality "1"]
[TimeControl "180+2"]

1. e4 {[%emt 0:00:02]} c5 {[%emt 0:00:00]} 2. Nc3 {[%emt 0:00:01]} Nc6 {
[%emt 0:00:01]} 3. Bb5 {[%emt 0:00:01]} Nd4 {[%emt 0:00:01]} 4. Nf3 {[%emt 0:
00:01]} a6 {[%emt 0:00:08]} 5. Bd3 {[%emt 0:00:06]} Nc6 {[%emt 0:00:05]} 6. O-O
{[%emt 0:00:07]} d6 {[%emt 0:00:01]} 7. h3 {[%emt 0:00:05]} g6 {[%emt 0:00:04]}
8. b3 {[%emt 0:00:05]} Bg7 {[%emt 0:00:02]} 9. Bb2 {[%emt 0:00:00]} b5 {
[%emt 0:00:22]} 10. Qc1 {[%emt 0:00:16]} e5 {[%emt 0:00:09]} 11. a4 {[%emt 0:
00:22]} b4 {[%emt 0:00:02]} 12. Nd5 {[%emt 0:00:00]} Nge7 {[%emt 0:00:07]} 13.
c3 {[%emt 0:00:08]} Nxd5 {[%emt 0:00:20]} 14. exd5 {[%emt 0:00:01]} Ne7 {
[%emt 0:00:01]} 15. cxb4 {[%emt 0:00:10]} cxb4 {[%emt 0:00:01]} 16. Bc4 {
[%emt 0:00:13]} Bb7 {[%emt 0:00:05]} 17. d4 {[%emt 0:00:05]} e4 {[%emt 0:00:35]
} 18. Ng5 {[%emt 0:00:02]} Bh6 {[%emt 0:00:00]} 19. Qf4 {[%emt 0:00:27]} O-O {
[%emt 0:00:13]} 20. Qg3 {[%emt 0:00:12]} Nf5 {[%emt 0:00:14]} 21. Qg4 {[%emt 0:
00:01]} Qxg5 {[%emt 0:00:07]} 22. Qxe4 {[%emt 0:00:04]} Rae8 {[%emt 0:00:01]}
23. Qd3 {[%emt 0:00:10]} Qd2 {[%emt 0:00:09]} 24. Rab1 {[%emt 0:00:17]} Qxd3 {
[%emt 0:00:01]} 25. Bxd3 {[%emt 0:00:01]} a5 {[%emt 0:00:08]} 26. Bc4 {[%emt 0:
00:06]} Re7 {[%emt 0:00:02]} 27. g4 {[%emt 0:00:10]} Nh4 {[%emt 0:00:05]} 28.
f4 {[%emt 0:00:04]} Re3 {[%emt 0:00:16]} 29. Kh2 {[%emt 0:00:22]} Rfe8 {
[%emt 0:00:01]} 30. Rf2 {[%emt 0:00:04]} Rf3 {[%emt 0:00:17]} 31. Rxf3 {
[%emt 0:00:08]} Nxf3+ {[%emt 0:00:01]} 32. Kg3 {[%emt 0:00:01]} Nd2 {[%emt 0:
00:01]} 33. Rd1 {[%emt 0:00:09]} Nxb3 {[%emt 0:00:03]} 34. Rd3 {[%emt 0:00:03]}
Nxd4 {[%emt 0:00:21]} 35. Bxd4 {[%emt 0:00:03]} Bg7 {[%emt 0:00:01]} 36. Be3 {
[%emt 0:00:01]} Re4 {[%emt 0:00:03]} 37. Bb5 {[%emt 0:00:02]} Bc3 {[%emt 0:00:
01]} 38. Kf3 {[%emt 0:00:02]} Re7 {[%emt 0:00:01]} 39. Bd2 {[%emt 0:00:03]}
Bxd2 {[%emt 0:00:02]} 40. Rxd2 {[%emt 0:00:01]} Kg7 {[%emt 0:00:01]} 41. Bc6 {
[%emt 0:00:01]} h5 {[%emt 0:00:04]} 42. Rc2 {[%emt 0:00:01]} hxg4+ {[%emt 0:00:
02]} 43. hxg4 {[%emt 0:00:01]} Kf6 {[%emt 0:00:02]} 44. g5+ {[%emt 0:00:02]}
Kf5 {[%emt 0:00:01]} 45. Rc4 {[%emt 0:00:06]} b3 {[%emt 0:00:04]} 46. Rc3 {
[%emt 0:00:02]} b2 {[%emt 0:00:02]} 47. Rb3 {[%emt 0:00:01]} Ba6 {[%emt 0:00:
04]} 48. Rxb2 {[%emt 0:00:03]} Bc4 {[%emt 0:00:02]} 49. Rc2 {[%emt 0:00:02]}
Bd3 {[%emt 0:00:01]} 50. Rb2 {[%emt 0:00:02]} Be4+ {[%emt 0:00:02]} 51. Kg3 {
[%emt 0:00:01]} f6 {[%emt 0:00:02]} 52. gxf6 {[%emt 0:00:01]} Kxf6 {[%emt 0:00:
01]} 53. Rb6 {[%emt 0:00:01]} Kf5 {[%emt 0:00:03]} 54. Bb7 {[%emt 0:00:03]} Rd7
{[%emt 0:00:02]} 55. Bc8 {[%emt 0:00:01]} 1-0

[Event "FIDE Women World Blitz 2021"]
[Site "Warsaw"]
[Date "2021.12.29"]
[Round "4.35"]
[White "Majdan, Joanna"]
[Black "Kazarian, Anna-Maja"]
[Result "1-0"]
[ECO "B24"]
[WhiteElo "2325"]
[BlackElo "2138"]
[Annotator "NA"]
[PlyCount "83"]
[EventDate "2021.12.29"]
[EventType "swiss"]
[EventCountry "POL"]
[Tiebreak "Cut1 Buchholz"]
[SourceTitle "playchess.com"]
[Source "ChessBase"]
[SourceQuality "1"]
[TimeControl "180+2"]

1. e4 {[%emt 0:00:01]} e6 {[%emt 0:00:01]} 2. d3 {[%emt 0:00:01]} c5 {[%emt 0:
00:01]} 3. Nc3 {[%emt 0:00:02]} Nc6 {[%emt 0:00:01]} 4. g3 {[%emt 0:00:02]} d6
{[%emt 0:00:04]} 5. Bg2 {[%emt 0:00:01]} Nf6 {[%emt 0:00:01]} 6. f4 {[%emt 0:
00:03]} Be7 {[%emt 0:00:05]} 7. Nf3 {[%emt 0:00:01]} Bd7 {[%emt 0:00:01]} 8.
O-O {[%emt 0:00:02]} O-O {[%emt 0:00:06]} 9. h3 {[%emt 0:00:02]} Rb8 {[%emt 0:
00:12]} 10. a4 {[%emt 0:00:02]} a6 {[%emt 0:00:01]} 11. g4 {[%emt 0:00:02]} b5
{[%emt 0:00:02]} 12. axb5 {[%emt 0:00:02]} axb5 {[%emt 0:00:01]} 13. Ne2 {
[%emt 0:00:04]} Ne8 {[%emt 0:00:15]} 14. g5 {[%emt 0:00:04]} f5 {[%emt 0:00:08]
} 15. exf5 {[%emt 0:00:19]} exf5 {[%emt 0:00:03]} 16. Nh4 {[%emt 0:00:11]} Nc7
{[%emt 0:00:09]} 17. Nc3 {[%emt 0:00:07]} Nb4 {[%emt 0:00:28]} 18. Ra7 {
[%emt 0:00:26]} d5 {[%emt 0:00:11]} 19. Rxc7 {[%emt 0:00:14]} Qxc7 {[%emt 0:00:
03]} 20. Nxd5 Qd6 {[%emt 0:00:32]} 21. Nxe7+ {[%emt 0:00:08]} Qxe7 {[%emt 0:00:
05]} 22. c3 {[%emt 0:00:01]} Na6 {[%emt 0:00:41]} 23. Bd5+ {[%emt 0:00:25]} Be6
{[%emt 0:00:01]} 24. Re1 {[%emt 0:00:22]} Nc7 {[%emt 0:00:01]} 25. c4 {[%emt 0:
00:18]} Qd6 {[%emt 0:00:08]} 26. Rxe6 {[%emt 0:00:12]} Nxe6 {[%emt 0:00:06]}
27. g6 {[%emt 0:00:11]} hxg6 {[%emt 0:00:14]} 28. Nxg6 {[%emt 0:00:03]} Rf6 {
[%emt 0:00:02]} 29. Qh5 {[%emt 0:00:01]} Re8 {[%emt 0:00:14]} 30. Be3 {[%emt 0:
00:15]} bxc4 {[%emt 0:00:00]} 31. dxc4 {[%emt 0:00:01]} Qb8 {[%emt 0:00:02]}
32. Qh8+ {[%emt 0:00:09]} Kf7 {[%emt 0:00:01]} 33. Ne5+ {[%emt 0:00:01]} Ke7 {
[%emt 0:00:04]} 34. Nc6+ Kd6 {[%emt 0:00:01]} 35. Qh5 {[%emt 0:00:09]} Qc8 {
[%emt 0:00:03]} 36. Qe2 {[%emt 0:00:01]} g5 {[%emt 0:00:02]} 37. fxg5 {[%emt 0:
00:03]} Nxg5 {[%emt 0:00:01]} 38. Bf4+ {[%emt 0:00:01]} Kd7 {[%emt 0:00:02]}
39. Qh5 {[%emt 0:00:06]} Ne4 {[%emt 0:00:01]} 40. Qh7+ {[%emt 0:00:02]} Rf7 {
[%emt 0:00:08]} 41. Qxf7+ {[%emt 0:00:02]} Re7 42. Qxe7# 1-0

[Event "FIDE Women World Blitz 2021"]
[Site "Warsaw"]
[Date "2021.12.29"]
[Round "4.36"]
[White "Gil Quilez, Sonia"]
[Black "Kulon, Klaudia"]
[Result "0-1"]
[ECO "E92"]
[WhiteElo "2122"]
[BlackElo "2328"]
[Annotator "NA"]
[PlyCount "68"]
[EventDate "2021.12.29"]
[EventType "swiss"]
[EventCountry "POL"]
[Tiebreak "Cut1 Buchholz"]
[SourceTitle "playchess.com"]
[Source "ChessBase"]
[SourceQuality "1"]
[TimeControl "180+2"]

1. d4 {[%emt 0:00:01]} Nf6 {[%emt 0:00:01]} 2. c4 {[%emt 0:00:01]} g6 {[%emt 0:
00:00]} 3. Nc3 {[%emt 0:00:01]} Bg7 {[%emt 0:00:01]} 4. e4 {[%emt 0:00:01]} d6
{[%emt 0:00:01]} 5. Nf3 {[%emt 0:00:01]} O-O {[%emt 0:00:01]} 6. Be2 {[%emt 0:
00:02]} e5 {[%emt 0:00:01]} 7. Be3 {[%emt 0:00:08]} exd4 {[%emt 0:00:07]} 8.
Nxd4 {[%emt 0:00:01]} Re8 {[%emt 0:00:01]} 9. f3 {[%emt 0:00:11]} c6 {[%emt 0:
00:01]} 10. Qd2 {[%emt 0:00:33]} d5 {[%emt 0:00:09]} 11. exd5 {[%emt 0:00:12]}
cxd5 {[%emt 0:00:03]} 12. c5 {[%emt 0:00:13]} Nc6 {[%emt 0:00:06]} 13. O-O {
[%emt 0:00:06]} Bd7 {[%emt 0:00:51]} 14. Ndb5 {[%emt 0:00:07]} a6 {[%emt 0:00:
09]} 15. Nd6 {[%emt 0:00:06]} Rxe3 {[%emt 0:00:04]} 16. Qxe3 {[%emt 0:00:13]}
d4 {[%emt 0:00:01]} 17. Qd3 {[%emt 0:00:13]} dxc3 {[%emt 0:00:02]} 18. bxc3 {
[%emt 0:00:03]} Qc7 {[%emt 0:00:05]} 19. Rad1 {[%emt 0:00:04]} Be6 {[%emt 0:00:
02]} 20. Qb1 {[%emt 0:00:06]} Rb8 {[%emt 0:00:05]} 21. Bc4 {[%emt 0:00:05]} Nd8
{[%emt 0:00:11]} 22. Qb4 {[%emt 0:00:14]} Nc6 {[%emt 0:00:13]} 23. Qb2 {
[%emt 0:00:07]} Bxc4 {[%emt 0:00:07]} 24. Nxc4 {[%emt 0:00:01]} Ne7 {[%emt 0:
00:01]} 25. Qa3 {[%emt 0:00:05]} Nfd5 {[%emt 0:00:03]} 26. Nb6 {[%emt 0:00:04]}
Nxc3 {[%emt 0:00:17]} 27. Rd7 {[%emt 0:00:04]} Qe5 {[%emt 0:00:01]} 28. Nc4 {
[%emt 0:00:17]} Qe6 {[%emt 0:00:04]} 29. Nb6 {[%emt 0:00:04]} h5 {[%emt 0:00:
04]} 30. c6 {[%emt 0:00:12]} Nxc6 {[%emt 0:00:04]} 31. Rc1 {[%emt 0:00:11]}
Ne2+ {[%emt 0:00:06]} 32. Kf2 {[%emt 0:00:01]} Nxc1 {[%emt 0:00:02]} 33. Qxc1 {
[%emt 0:00:01]} Bd4+ {[%emt 0:00:03]} 34. Rxd4 {[%emt 0:00:08]} Nxd4 {[%emt 0:
00:01]} 0-1

[Event "FIDE Women World Blitz 2021"]
[Site "Warsaw"]
[Date "2021.12.29"]
[Round "4.37"]
[White "Nur-Mukhametova, Alisa"]
[Black "Girya, Olga"]
[Result "0-1"]
[ECO "D37"]
[WhiteElo "2225"]
[BlackElo "2402"]
[Annotator "NA"]
[PlyCount "42"]
[EventDate "2021.12.29"]
[EventType "swiss"]
[EventCountry "POL"]
[Tiebreak "Cut1 Buchholz"]
[SourceTitle "playchess.com"]
[Source "ChessBase"]
[SourceQuality "1"]
[TimeControl "180+2"]

1. d4 {[%emt 0:00:04]} Nf6 {[%emt 0:00:01]} 2. c4 {[%emt 0:00:01]} e6 {[%emt 0:
00:00]} 3. Nf3 {[%emt 0:00:02]} d5 {[%emt 0:00:01]} 4. Nc3 {[%emt 0:00:04]} Be7
{[%emt 0:00:01]} 5. Bf4 {[%emt 0:00:09]} dxc4 {[%emt 0:00:01]} 6. e3 {[%emt 0:
00:48]} a6 {[%emt 0:00:01]} 7. a4 {[%emt 0:00:10]} c5 {[%emt 0:00:01]} 8. Bxc4
{[%emt 0:00:32]} cxd4 {[%emt 0:00:02]} 9. Nxd4 {[%emt 0:00:16]} Bd7 {[%emt 0:
00:06]} 10. O-O {[%emt 0:00:08]} Nc6 {[%emt 0:00:01]} 11. Nf3 {[%emt 0:00:13]}
O-O {[%emt 0:00:11]} 12. Rc1 {[%emt 0:00:06]} Qb6 {[%emt 0:00:06]} 13. Qb3 {
[%emt 0:00:18]} Qxb3 14. Bxb3 {[%emt 0:00:01]} Rac8 {[%emt 0:00:06]} 15. Rfd1 {
[%emt 0:00:06]} Rfd8 {[%emt 0:00:01]} 16. e4 {[%emt 0:00:20]} Nb4 {[%emt 0:00:
28]} 17. e5 {[%emt 0:00:13]} Nfd5 {[%emt 0:00:09]} 18. Nxd5 {[%emt 0:00:01]}
exd5 {[%emt 0:00:06]} 19. Bxd5 {[%emt 0:00:04]} Rxc1 {[%emt 0:00:07]} 20. Bxc1
{[%emt 0:00:02]} Bxa4 {[%emt 0:00:13]} 21. b3 {[%emt 0:00:01]} Bc6 {[%emt 0:00:
01]} 0-1

[Event "FIDE Women World Blitz 2021"]
[Site "Warsaw"]
[Date "2021.12.29"]
[Round "4.38"]
[White "Kiolbasa, Oliwia"]
[Black "Dworakowska, Joanna"]
[Result "1-0"]
[ECO "B91"]
[WhiteElo "2403"]
[BlackElo "2228"]
[Annotator "NA"]
[PlyCount "58"]
[EventDate "2021.12.29"]
[EventType "swiss"]
[EventCountry "POL"]
[Tiebreak "Cut1 Buchholz"]
[SourceTitle "playchess.com"]
[Source "ChessBase"]
[SourceQuality "1"]
[TimeControl "180+2"]

1. e4 {[%emt 0:00:01]} c5 {[%emt 0:00:00]} 2. Nf3 {[%emt 0:00:01]} d6 {[%emt 0:
00:01]} 3. d4 {[%emt 0:00:01]} cxd4 {[%emt 0:00:01]} 4. Nxd4 {[%emt 0:00:02]}
Nf6 {[%emt 0:00:01]} 5. Nc3 {[%emt 0:00:01]} a6 {[%emt 0:00:00]} 6. g3 {
[%emt 0:00:13]} e5 {[%emt 0:00:02]} 7. Nde2 {[%emt 0:00:01]} Be7 {[%emt 0:00:
08]} 8. Bg2 {[%emt 0:00:01]} Nbd7 {[%emt 0:00:15]} 9. a4 {[%emt 0:00:05]} b6 {
[%emt 0:00:01]} 10. O-O {[%emt 0:00:09]} Bb7 {[%emt 0:00:01]} 11. Re1 {[%emt 0:
00:43]} Nc5 {[%emt 0:00:10]} 12. f3 {[%emt 0:00:28]} O-O {[%emt 0:00:14]} 13.
Bg5 {[%emt 0:00:06]} Ne8 {[%emt 0:00:26]} 14. Bxe7 {[%emt 0:00:04]} Qxe7 {
[%emt 0:00:01]} 15. Nd5 {[%emt 0:00:04]} Qd8 {[%emt 0:00:07]} 16. Nec3 {
[%emt 0:00:09]} Kh8 {[%emt 0:00:16]} 17. Ne3 {[%emt 0:00:13]} Ra7 {[%emt 0:00:
18]} 18. Ncd5 {[%emt 0:00:05]} Bc8 {[%emt 0:00:13]} 19. Qd2 {[%emt 0:00:09]} f5
{[%emt 0:00:11]} 20. exf5 {[%emt 0:00:07]} Bxf5 {[%emt 0:00:04]} 21. Nxf5 {
[%emt 0:00:10]} Rxf5 {[%emt 0:00:02]} 22. Ne3 {[%emt 0:00:06]} Rf8 {[%emt 0:00:
05]} 23. Nc4 {[%emt 0:00:04]} Rd7 {[%emt 0:00:28]} 24. Bh3 {[%emt 0:00:13]} Re7
{[%emt 0:00:22]} 25. Nxe5 {[%emt 0:00:14]} Qc7 {[%emt 0:00:01]} 26. Nd3 {
[%emt 0:00:06]} Rxf3 {[%emt 0:00:11]} 27. Nf4 {[%emt 0:00:02]} Ne4 {[%emt 0:00:
13]} 28. Qd4 {[%emt 0:00:10]} Ng5 {[%emt 0:00:02]} 29. Bg2 {[%emt 0:00:03]}
Rxe1+ {[%emt 0:00:05]} 1-0

[Event "FIDE Women World Blitz 2021"]
[Site "Warsaw"]
[Date "2021.12.29"]
[Round "4.39"]
[White "Jakubowska, Anna"]
[Black "Badelka, Olga"]
[Result "1/2-1/2"]
[ECO "B25"]
[WhiteElo "2106"]
[BlackElo "2188"]
[Annotator "NA"]
[PlyCount "87"]
[EventDate "2021.12.29"]
[EventType "swiss"]
[EventCountry "POL"]
[Tiebreak "Cut1 Buchholz"]
[SourceTitle "playchess.com"]
[Source "ChessBase"]
[SourceQuality "1"]
[TimeControl "180+2"]

1. e4 {[%emt 0:00:01]} c5 {[%emt 0:00:01]} 2. Nc3 {[%emt 0:00:01]} Nc6 {
[%emt 0:00:01]} 3. g3 {[%emt 0:00:01]} g6 {[%emt 0:00:01]} 4. Bg2 {[%emt 0:00:
01]} Bg7 {[%emt 0:00:01]} 5. d3 {[%emt 0:00:01]} d6 {[%emt 0:00:02]} 6. Nh3 {
[%emt 0:00:04]} e6 {[%emt 0:00:03]} 7. O-O {[%emt 0:00:02]} Nge7 {[%emt 0:00:
02]} 8. Be3 {[%emt 0:00:02]} O-O {[%emt 0:00:03]} 9. Qd2 {[%emt 0:00:01]} Re8 {
[%emt 0:00:05]} 10. Bh6 {[%emt 0:00:03]} Bh8 {[%emt 0:00:00]} 11. Rae1 {
[%emt 0:00:05]} Rb8 {[%emt 0:00:05]} 12. f4 {[%emt 0:00:03]} Nd4 {[%emt 0:00:
12]} 13. Nd1 {[%emt 0:00:02]} Bd7 {[%emt 0:00:07]} 14. c3 {[%emt 0:00:02]} Ndc6
{[%emt 0:00:01]} 15. Ne3 {[%emt 0:00:02]} Qc7 {[%emt 0:00:09]} 16. g4 {[%emt 0:
00:09]} b5 {[%emt 0:00:16]} 17. f5 {[%emt 0:00:02]} exf5 {[%emt 0:00:13]} 18.
gxf5 {[%emt 0:00:01]} Ne5 {[%emt 0:00:08]} 19. fxg6 {[%emt 0:00:11]} hxg6 {
[%emt 0:00:07]} 20. Qe2 {[%emt 0:00:39]} Bxh3 {[%emt 0:00:11]} 21. Bxh3 {
[%emt 0:00:02]} c4 {[%emt 0:00:07]} 22. d4 {[%emt 0:00:04]} Nd3 {[%emt 0:00:01]
} 23. Rd1 {[%emt 0:00:32]} Bg7 {[%emt 0:00:06]} 24. Bg5 {[%emt 0:00:05]} Qb7 {
[%emt 0:00:16]} 25. Qf3 {[%emt 0:00:02]} Rf8 {[%emt 0:00:10]} 26. Ng4 {[%emt 0:
00:10]} f5 {[%emt 0:00:16]} 27. Nh6+ {[%emt 0:00:24]} Kh7 {[%emt 0:00:10]} 28.
exf5 {[%emt 0:00:06]} Bxh6 {[%emt 0:00:10]} 29. fxg6+ {[%emt 0:00:03]} Nxg6 {
[%emt 0:00:07]} 30. Qh5 {[%emt 0:00:02]} Qg7 {[%emt 0:00:09]} 31. Bf5 {[%emt 0:
00:15]} Nxb2 {[%emt 0:00:31]} 32. Rd2 {[%emt 0:00:03]} Nd3 {[%emt 0:00:02]} 33.
Rf3 {[%emt 0:00:02]} Rxf5 {[%emt 0:00:03]} 34. Rxf5 {[%emt 0:00:02]} Rf8 {
[%emt 0:00:02]} 35. Rxf8 {[%emt 0:00:15]} Nxf8 {[%emt 0:00:01]} 36. Rg2 {
[%emt 0:00:06]} Qg6 {[%emt 0:00:07]} 37. Qh4 {[%emt 0:00:11]} Ne6 {[%emt 0:00:
01]} 38. Bxh6 {[%emt 0:00:02]} Qxh6 {[%emt 0:00:02]} 39. Qe7+ {[%emt 0:00:01]}
Ng7 {[%emt 0:00:03]} 40. Qe4+ {[%emt 0:00:03]} Kh8 {[%emt 0:00:01]} 41. Qa8+ {
[%emt 0:00:03]} Kh7 {[%emt 0:00:02]} 42. Qe4+ {[%emt 0:00:02]} Kg8 {[%emt 0:00:
02]} 43. Qa8+ {[%emt 0:00:03]} Kh7 {[%emt 0:00:02]} 44. Qe4+ {[%emt 0:00:01]}
1/2-1/2

[Event "FIDE Women World Blitz 2021"]
[Site "Warsaw"]
[Date "2021.12.29"]
[Round "5.1"]
[White "Gunina, Valentina"]
[Black "Assaubayeva, Bibisara"]
[Result "1-0"]
[ECO "E92"]
[WhiteElo "2480"]
[BlackElo "2400"]
[Annotator "ChessBase"]
[PlyCount "95"]
[EventDate "2021.12.29"]
[EventType "swiss"]
[EventCountry "POL"]
[Tiebreak "Cut1 Buchholz"]
[SourceTitle "playchess.com"]
[Source "ChessBase"]
[SourceQuality "1"]
[TimeControl "180+2"]

1. d4 {[%emt 0:00:02]} Nf6 {[%emt 0:00:01]} 2. c4 {[%emt 0:00:01]} g6 {[%emt 0:
00:01]} 3. Nc3 {[%emt 0:00:01]} Bg7 {[%emt 0:00:01]} 4. e4 {[%emt 0:00:02]} d6
{[%emt 0:00:00]} 5. Nf3 {[%emt 0:00:08]} O-O {[%emt 0:00:02]} 6. Be2 {[%emt 0:
00:01]} e5 {[%emt 0:00:01]} 7. Be3 {[%emt 0:00:02]} Ng4 {[%emt 0:00:03]} 8. Bg5
{[%emt 0:00:02]} f6 {[%emt 0:00:01]} 9. Bc1 {[%emt 0:00:03]} Nh6 {[%emt 0:00:
02]} 10. h4 {[%emt 0:00:19]} Nc6 {[%emt 0:00:18]} 11. d5 {[%emt 0:00:02]} Ne7 {
[%emt 0:00:10]} 12. Bd2 {[%emt 0:00:08]} Nf7 {[%emt 0:00:16]} 13. h5 {[%emt 0:
00:19]} f5 {[%emt 0:00:19]} 14. hxg6 {[%emt 0:00:09]} Nxg6 {[%emt 0:00:03]} 15.
Qc2 {[%emt 0:00:07]} fxe4 {[%emt 0:00:22]} 16. Nxe4 {[%emt 0:00:02]} c6 {
[%emt 0:00:07]} 17. Bd3 {[%emt 0:00:12]} cxd5 {[%emt 0:00:05]} 18. cxd5 {
[%emt 0:00:01]} Bf5 {[%emt 0:00:26]} 19. Nf6+ {[%emt 0:00:12]} Qxf6 {[%emt 0:
00:06]} 20. Bxf5 {[%emt 0:00:01]} e4 {[%emt 0:00:01]} 21. Qxe4 {[%emt 0:00:03]}
Nfe5 {[%emt 0:00:36]} 22. Be6+ {[%emt 0:00:04]} Kh8 {[%emt 0:00:01]} 23. Nxe5 {
[%emt 0:00:36]} Qxe5 {[%emt 0:00:13]} 24. Qxe5 {[%emt 0:00:03]} Bxe5 {[%emt 0:
00:03]} 25. g3 {[%emt 0:00:03]} Bd4 {[%emt 0:00:10]} 26. f4 {[%emt 0:00:03]}
Ne7 {[%emt 0:00:06]} 27. Ke2 {[%emt 0:00:03]} Nf5 {[%emt 0:00:08]} 28. Kd3 {
[%emt 0:00:03]} Bg7 {[%emt 0:00:03]} 29. Rh3 {[%emt 0:00:11]} Nd4 {[%emt 0:00:
03]} 30. Bg4 {[%emt 0:00:12]} Rae8 {[%emt 0:00:07]} 31. Rah1 {[%emt 0:00:03]}
h6 {[%emt 0:00:01]} 32. Bc3 {[%emt 0:00:01]} Nf5 {[%emt 0:00:01]} 33. Bxf5 {
[%emt 0:00:01]} Rxf5 {[%emt 0:00:03]} 34. Rxh6+ {[%emt 0:00:02]} Kg8 {[%emt 0:
00:01]} 35. Rxd6 {[%emt 0:00:07]} Bxc3 {[%emt 0:00:02]} 36. bxc3 {[%emt 0:00:
01]} Rf7 {[%emt 0:00:02]} 37. Rg6+ {[%emt 0:00:02]} Rg7 {[%emt 0:00:01]} 38.
Rxg7+ {[%emt 0:00:01]} Kxg7 {[%emt 0:00:01]} 39. g4 {[%emt 0:00:01]} Kg6 {
[%emt 0:00:02]} 40. c4 {[%emt 0:00:04]} Rf8 {[%emt 0:00:02]} 41. Rf1 {[%emt 0:
00:07]} Rh8 {[%emt 0:00:01]} 42. Re1 {[%emt 0:00:01]} Rh2 {[%emt 0:00:03]} 43.
Re7 {[%emt 0:00:02]} Rxa2 {[%emt 0:00:03]} 44. Rxb7 {[%emt 0:00:02]} Rf2 {
[%emt 0:00:02]} 45. f5+ {[%emt 0:00:01]} Kg5 {[%emt 0:00:01]} 46. d6 {[%emt 0:
00:01]} Kxg4 {[%emt 0:00:02]} 47. d7 {[%emt 0:00:01]} Rf1 {[%emt 0:00:01]} 48.
Rb2 {[%emt 0:00:03]} 1-0